fUSD/lending_fUSD_20250610
["ID","MTS","AMOUNT","RATE_DAILY","PERIOD"]
[365269577,1749570652317,-490.0,0.00017753,2]
[365269579,1749570652326,-642.66,0.00017753,2]
[365269581,1749570652336,-490.0,0.00017753,2]
[365269583,1749570652345,-157.378676,0.00017753,2]
[365269585,1749570652355,-157.378676,0.00017753,2]
[365269587,1749570652366,-983.05,0.00017753,2]
[365269589,1749570652375,-490.0,0.00017753,2]
[365269591,1749570652384,-151.0,0.00017753,2]
[365269593,1749570652394,-980.31,0.00017753,2]
[365269595,1749570652404,-490.0,0.00017753,2]
[365269597,1749570652413,-490.0,0.00017753,2]
[365269599,1749570652423,-490.0,0.00017753,2]
[365269601,1749570652432,-490.0,0.00017753,2]
[365269603,1749570652444,-2100.58,0.00017753,2]
[365269605,1749570652454,-490.0,0.00017753,2]
[365269607,1749570652463,-490.0,0.00017753,2]
[365269609,1749570652474,-490.0,0.00017753,2]
[365269612,1749570652487,-490.0,0.00017753,2]
[365269613,1749570652496,-612.37,0.00017753,2]
[365269615,1749570652506,-547.944185,0.00017753,2]
[365269618,1749570652516,-547.944185,0.00017753,2]
[365269620,1749570652526,-490.0,0.00017753,2]
[365269622,1749570652535,-490.0,0.00017753,2]
[365269623,1749570652545,-520.05,0.00017753,2]
[365269625,1749570652557,-1277.47,0.00017753,2]
[365269628,1749570652567,-2101.06,0.00017753,2]
[365269629,1749570652576,-1048.02,0.00017753,2]
[365269631,1749570652585,-255.82445818,0.00017753,2]
[365269633,1749570652595,-490.0,0.00017753,2]
[365269635,1749570652604,-490.0,0.00017753,2]
[365269637,1749570652614,-490.0,0.00017753,2]
[365269639,1749570652623,-9735.04,0.00017753,2]
[365269641,1749570652633,-836.130337,0.00017753,2]
[365269643,1749570652642,-490.0,0.00017753,2]
[365269645,1749570652652,-836.130337,0.00017753,2]
[365269647,1749570652662,-225.03,0.00017753,2]
[365269649,1749570652672,-151.0,0.00017753,2]
[365269651,1749570652682,-390.92406,0.00017753,2]
[365269653,1749570652692,-490.0,0.00017753,2]
[365269655,1749570652702,-390.92406,0.00017753,2]
[365269657,1749570652712,-490.0,0.00017753,2]
[365269659,1749570652721,-1958.36,0.00017753,2]
[365269661,1749570652731,-505.2,0.00017753,2]
[365269663,1749570652740,-1000.0,0.00017758,2]
[365269665,1749570652750,-502.67181767,0.00017758,2]
[365269668,1749570652761,-152.32648016,0.00017758,2]
[365269670,1749570652770,-544.3550376,0.00017758,2]
[365269672,1749570652780,-500.0,0.00017758,2]
[365269674,1749570652789,-600.0,0.0001778,4]
[365269676,1749570652799,-600.0,0.0001778,4]
[365269678,1749570652808,-300.0,0.0001778,2]
[365269680,1749570652818,-151.0,0.000178,2]
[365269682,1749570652827,-151.0,0.000178,2]
[365269684,1749570652836,-180.929161,0.000178,2]
[365269685,1749570652845,-283.910702,0.000178,2]
[365269687,1749570652855,-283.910702,0.000178,2]
[365269689,1749570652864,-153.823184,0.000178,2]
[365269691,1749570652874,-251.287677,0.00017804,2]
[365269693,1749570652885,-251.287677,0.00017804,2]
[365269695,1749570652900,-151.0,0.00017808,2]
[365269697,1749570652914,-162.517009,0.00017808,2]
[365269699,1749570652924,-162.517009,0.00017808,2]
[365269701,1749570652933,-170.29964,0.00017808,2]
[365269703,1749570652944,-170.29964,0.00017808,2]
[365269705,1749570652954,-216.607352,0.00017808,2]
[365269707,1749570652964,-216.607352,0.00017808,2]
[365269710,1749570652974,-504.079775,0.00017808,7]
[365269712,1749570652984,-500.0,0.00017821,2]
[365269713,1749570652992,-151.0,0.00017831,2]
[365269715,1749570653002,-9047.825904,0.00017831,2]
[365269717,1749570653011,-9047.825904,0.00017831,2]
[365269720,1749570653024,-152.0,0.00017848,3]
[365269722,1749570653034,-234.0,0.00017853,4]
[365269724,1749570653043,-216.78711551,0.0001786,2]
[365269726,1749570653054,-500.0,0.0001786,2]
[365269728,1749570653064,-500.0,0.0001786,2]
[365269730,1749570653072,-156.42,0.0001789,2]
[365269732,1749570653082,-212.855355,0.00017899,2]
[365269734,1749570653091,-212.855355,0.00017899,2]
[365269736,1749570653100,-532.008873,0.00017899,2]
[365269738,1749570653110,-532.008873,0.00017899,2]
[365269740,1749570653119,-472.618288,0.00017899,2]
[365269742,1749570653127,-472.618288,0.00017899,2]
[365269743,1749570653136,-6183.75,0.000179,2]
[365269745,1749570653146,-3663.75,0.000179,2]
[365269747,1749570653155,-1876.89,0.000179,2]
[365269749,1749570653165,-13494.36899294,0.000179,2]
[365269752,1749570653175,-158.450287,0.000179,2]
[365269754,1749570653185,-158.450287,0.000179,2]
[365269756,1749570653195,-151.0,0.000179,2]
[365269758,1749570653205,-151.0,0.000179,2]
[365269759,1749570653214,-151.0,0.000179,2]
[365269762,1749570653224,-151.0,0.000179,2]
[365269764,1749570653233,-151.0,0.000179,2]
[365269766,1749570653242,-151.0,0.000179,2]
[365269767,1749570653252,-273.622342,0.000179,2]
[365269770,1749570653261,-273.622342,0.000179,2]
[365269772,1749570653270,-151.0,0.000179,2]
[365269773,1749570653280,-258.876173,0.000179,2]
[365269776,1749570653290,-258.876173,0.000179,2]
[365269778,1749570653299,-151.0,0.000179,2]
[365269780,1749570653309,-151.0,0.000179,2]
[365269782,1749570653319,-151.0,0.000179,2]
[365269784,1749570653328,-151.0,0.000179,2]
[365269786,1749570653338,-196.879594,0.000179,2]
[365269787,1749570653349,-196.879594,0.000179,2]
[365269790,1749570653361,-283.910702,0.000179,2]
[365269791,1749570653372,-283.910702,0.000179,2]
[365269794,1749570653382,-151.0,0.000179,2]
[365269796,1749570653392,-151.0,0.000179,2]
[365269798,1749570653401,-151.0,0.000179,2]
[365269800,1749570653410,-151.0,0.000179,2]
[365269802,1749570653420,-151.0,0.000179,2]
[365269804,1749570653430,-160.124234,0.000179,2]
[365269806,1749570653439,-409.68,0.000179,2]
[365269808,1749570653449,-409.68,0.000179,2]
[365269810,1749570653459,-151.0,0.000179,2]
[365269812,1749570653468,-151.0,0.000179,2]
[365269814,1749570653479,-151.0,0.000179,2]
[365269816,1749570653490,-151.0,0.000179,2]
[365269818,1749570653499,-151.0,0.000179,2]
[365269820,1749570653509,-151.0,0.000179,2]
[365269822,1749570653519,-151.0,0.000179,2]
[365269824,1749570653528,-151.0,0.000179,2]
[365269826,1749570653537,-152.211696,0.000179,2]
[365269828,1749570653547,-151.0,0.000179,2]
[365269830,1749570653557,-199.03642,0.000179,2]
[365269832,1749570653566,-151.0,0.000179,2]
[365269834,1749570653576,-151.0,0.000179,2]
[365269836,1749570653585,-151.0,0.000179,2]
[365269837,1749570653595,-151.0,0.000179,2]
[365269839,1749570653604,-151.0,0.000179,2]
[365269840,1749570653613,-151.0,0.000179,2]
[365269841,1749570653623,-388.714748,0.000179,2]
[365269842,1749570653633,-388.714748,0.000179,2]
[365269843,1749570653642,-190.369157,0.000179,2]
[365269844,1749570653652,-190.369157,0.000179,2]
[365269845,1749570653662,-151.0,0.000179,2]
[365269846,1749570653671,-151.0,0.000179,2]
[365269847,1749570653680,-151.0,0.000179,2]
[365269848,1749570653691,-151.0,0.000179,2]
[365269849,1749570653701,-152.942544,0.000179,2]
[365269850,1749570653710,-152.942544,0.000179,2]
[365269851,1749570653720,-354.435439,0.000179,2]
[365269853,1749570653730,-354.435439,0.000179,2]
[365269855,1749570653739,-151.0,0.000179,2]
[365269857,1749570653748,-210.111853,0.000179,2]
[365269859,1749570653758,-210.111853,0.000179,2]
[365269861,1749570653768,-301.004698,0.000179,2]
[365269863,1749570653777,-301.004698,0.000179,2]
[365269865,1749570653787,-235.509538,0.000179,2]
[365269867,1749570653796,-235.509538,0.000179,2]
[365269869,1749570653805,-1168.379888,0.000179,2]
[365269871,1749570653815,-183.116592,0.000179,2]
[365269873,1749570653825,-151.0,0.000179,2]
[365269875,1749570653835,-697.225594,0.000179,2]
[365269877,1749570653844,-697.225594,0.000179,2]
[365269879,1749570653854,-227.628302,0.000179,2]
[365269881,1749570653865,-227.628302,0.000179,2]
[365269883,1749570653876,-151.0,0.000179,2]
[365269885,1749570653886,-151.0,0.000179,2]
[365269887,1749570653895,-157.378676,0.000179,2]
[365269889,1749570653905,-157.378676,0.000179,2]
[365269891,1749570653915,-400.0,0.000179,6]
[365269893,1749570653925,-151.0,0.000179,2]
[365269895,1749570653935,-309.77074439,0.000179,2]
[365269897,1749570653946,-186.153388,0.000179,2]
[365269899,1749570653955,-1094.04917502,0.000179,2]
[365269901,1749570653965,-836.130337,0.000179,2]
[365269903,1749570653975,-151.0,0.000179,2]
[365269905,1749570653985,-836.130337,0.000179,2]
[365269907,1749570653995,-1898.26,0.000179,2]
[365269909,1749570654004,-264.119685,0.000179,2]
[365269911,1749570654014,-298.46707086,0.000179,2]
[365269913,1749570654024,-151.0,0.000179,2]
[365269916,1749570654034,-298.46707076,0.000179,2]
[365269917,1749570654043,-298.46707076,0.000179,2]
[365269919,1749570654053,-298.46707076,0.000179,2]
[365269921,1749570654063,-298.46707076,0.000179,2]
[365269923,1749570654073,-298.46707076,0.000179,2]
[365269925,1749570654083,-298.46707076,0.000179,2]
[365269927,1749570654094,-151.0,0.00017917,2]
[365269930,1749570654104,-151.0,0.00017917,2]
[365269931,1749570654113,-151.575518,0.00017917,2]
[365269933,1749570654123,-401.88123,0.00017917,2]
[365269935,1749570654133,-401.88123,0.00017917,2]
[365269937,1749570654142,-151.0,0.00017917,2]
[365269939,1749570654152,-178.708421,0.00017917,2]
[365269941,1749570654162,-204.630289,0.00017917,2]
[365269943,1749570654172,-1951.54759,0.00017917,2]
[365269945,1749570654181,-258.876173,0.00017917,2]
[365269947,1749570654192,-258.876173,0.00017917,2]
[365269949,1749570654202,-224.999584,0.00017917,2]
[365269951,1749570654211,-196.879594,0.00017917,2]
[365269953,1749570654221,-196.879594,0.00017917,2]
[365269955,1749570654233,-251.287677,0.00017917,2]
[365269957,1749570654243,-251.287677,0.00017917,2]
[365269959,1749570654253,-151.0,0.00017917,2]
[365269961,1749570654263,-151.0,0.00017917,2]
[365269963,1749570654273,-162.517009,0.00017917,2]
[365269965,1749570654283,-162.517009,0.00017917,2]
[365269967,1749570654293,-532.008873,0.00017917,2]
[365269969,1749570654303,-532.008873,0.00017917,2]
[365269971,1749570654313,-170.29964,0.00017917,2]
[365269973,1749570654323,-170.29964,0.00017917,2]
[365269975,1749570654332,-472.618288,0.00017917,2]
[365269977,1749570654342,-472.618288,0.00017917,2]
[365269979,1749570654352,-151.0,0.00017917,2]
[365269981,1749570654362,-151.0,0.00017917,2]
[365269983,1749570654372,-330.06870311,0.00017917,2]
[365269985,1749570654382,-9047.825904,0.00017917,2]
[365269987,1749570654392,-9047.825904,0.00017917,2]
[365269989,1749570654402,-490.0,0.00017917,2]
[365269991,1749570654411,-210.111853,0.00017917,2]
[365269993,1749570654421,-210.111853,0.00017917,2]
[365269995,1749570654431,-490.0,0.00017917,2]
[365269997,1749570654441,-301.004698,0.00017917,2]
[365269999,1749570654451,-301.004698,0.00017917,2]
[365270001,1749570654461,-151.0,0.00017917,2]
[365270004,1749570654473,-697.225594,0.00017917,2]
[365270006,1749570654486,-697.225594,0.00017917,2]
[365270007,1749570654496,-151.0,0.00017917,2]
[365270010,1749570654506,-603.49,0.00017917,2]
[365270012,1749570654516,-490.0,0.00017917,2]
[365270014,1749570654526,-642.66,0.00017917,2]
[365270016,1749570654536,-490.0,0.00017917,2]
[365270018,1749570654545,-983.05,0.00017917,2]
[365270020,1749570654557,-490.0,0.00017917,2]
[365270022,1749570654567,-980.31,0.00017917,2]
[365270024,1749570654577,-490.0,0.00017917,2]
[365270026,1749570654586,-490.0,0.00017917,2]
[365270028,1749570654595,-490.0,0.00017917,2]
[365270030,1749570654605,-216.607352,0.00017917,2]
[365270032,1749570654614,-406.03959058,0.00017917,2]
[365270034,1749570654625,-2100.58,0.00017917,2]
[365270036,1749570654635,-216.607352,0.00017917,2]
[365270038,1749570654646,-490.0,0.00017917,2]
[365270040,1749570654656,-490.0,0.00017917,2]
[365270042,1749570654666,-490.0,0.00017917,2]
[365270044,1749570654675,-490.0,0.00017917,2]
[365270046,1749570654685,-612.37,0.00017917,2]
[365270048,1749570654695,-547.944185,0.00017917,2]
[365270050,1749570654706,-547.944193,0.00017917,2]
[365270052,1749570654715,-490.0,0.00017917,2]
[365270054,1749570654725,-490.0,0.00017917,2]
[365270056,1749570654735,-520.05,0.00017917,2]
[365270058,1749570654745,-1277.47,0.00017917,2]
[365270060,1749570654755,-2101.06,0.00017917,2]
[365270062,1749570654765,-1048.02,0.00017917,2]
[365270064,1749570654775,-490.0,0.00017917,2]
[365270066,1749570654785,-490.0,0.00017917,2]
[365270068,1749570654796,-490.0,0.00017917,2]
[365270070,1749570654806,-9735.04,0.00017917,2]
[365270072,1749570654816,-490.0,0.00017917,2]
[365270075,1749570654826,-390.92406,0.00017917,2]
[365270077,1749570654837,-490.0,0.00017917,2]
[365270079,1749570654847,-390.92406,0.00017917,2]
[365270081,1749570654857,-490.0,0.00017917,2]
[365270083,1749570654867,-1958.36,0.00017917,2]
[365270085,1749570654878,-505.2,0.00017917,2]
[365270087,1749570654888,-151.0,0.00017944,2]
[365270089,1749570654898,-5861.60769313,0.00017955,2]
[365270302,1749570657409,-35380.00964017,0.00017955,2]
[365270303,1749570657419,-23108.0029847,0.00017955,2]
[365270304,1749570657429,-492.0,0.00017956,2]
[365270305,1749570657438,-156.587,0.00017961,2]
[365270306,1749570657449,-215.0738,0.00017961,2]
[365270308,1749570657459,-151.0,0.00017963,2]
[365270310,1749570657468,-151.0,0.00017963,2]
[365270312,1749570657478,-283.910702,0.00017963,2]
[365270314,1749570657490,-283.910702,0.00017963,2]
[365270316,1749570657499,-151.0,0.00017963,2]
[365270318,1749570657508,-151.0,0.00017963,2]
[365270319,1749570657517,-224.802069,0.00017963,2]
[365270321,1749570657527,-354.435439,0.00017963,2]
[365270323,1749570657536,-354.435439,0.00017963,2]
[365270325,1749570657545,-420.0,0.00017963,2]
[365270327,1749570657556,-1000.0,0.00017967,2]
[365270329,1749570657565,-1000.0,0.00017967,2]
[365270331,1749570657575,-492.0,0.00017968,2]
[365270333,1749570657585,-1094.0491748,0.00017969,2]
[365270335,1749570657595,-500.0,0.00017973,2]
[365270337,1749570657605,-212.855355,0.00017999,2]
[365270339,1749570657615,-212.855355,0.00017999,2]
[365270341,1749570657625,-1414.29876664,0.00018,2]
[365270343,1749570657635,-140888.58233428,0.00018,2]
[365270345,1749570657645,-1154.7711546,0.00018,2]
[365270347,1749570657654,-158.450287,0.00018,2]
[365270349,1749570657664,-158.450287,0.00018,2]
[365270351,1749570657673,-401.88123,0.00018,2]
[365270353,1749570657683,-401.88123,0.00018,2]
[365270355,1749570657692,-151.0,0.00018,2]
[365270357,1749570657701,-151.0,0.00018,2]
[365270359,1749570657711,-151.0,0.00018,2]
[365270361,1749570657720,-202.88253377,0.00018,2]
[365270363,1749570657729,-151.0,0.00018,2]
[365270365,1749570657739,-152.196669,0.00018,2]
[365270367,1749570657747,-151.0,0.00018,2]
[365270369,1749570657757,-151.0,0.00018,2]
[365270371,1749570657766,-273.622342,0.00018,2]
[365270373,1749570657776,-273.622342,0.00018,2]
[365270375,1749570657786,-151.0,0.00018,2]
[365270377,1749570657795,-1951.54759,0.00018,2]
[365270378,1749570657803,-258.876173,0.00018,2]
[365270380,1749570657813,-258.876173,0.00018,2]
[365270382,1749570657822,-265.310271,0.00018,2]
[365270384,1749570657832,-151.0,0.00018,2]
[365270386,1749570657841,-196.879594,0.00018,2]
[365270388,1749570657851,-196.879594,0.00018,2]
[365270390,1749570657861,-283.910702,0.00018,2]
[365270392,1749570657871,-283.910702,0.00018,2]
[365270394,1749570657880,-251.287677,0.00018,2]
[365270396,1749570657890,-251.287677,0.00018,2]
[365270398,1749570657899,-151.0,0.00018,2]
[365270400,1749570657908,-151.0,0.00018,2]
[365270402,1749570657917,-151.0,0.00018,2]
[365270404,1749570657927,-151.0,0.00018,2]
[365270406,1749570657936,-151.0,0.00018,2]
[365270408,1749570657946,-409.68,0.00018,2]
[365270410,1749570657955,-409.68,0.00018,2]
[365270412,1749570657965,-286.3477586,0.00018,2]
[365270414,1749570657975,-247.91393884,0.00018,2]
[365270416,1749570657983,-259.8447065,0.00018,2]
[365270418,1749570657992,-160.76017932,0.00018,2]
[365270420,1749570658001,-277.25568285,0.00018,2]
[365270421,1749570658010,-248.12837743,0.00018,2]
[365270423,1749570658020,-154.02767222,0.00018,2]
[365270425,1749570658028,-216.08735713,0.00018,2]
[365270427,1749570658037,-150.0,0.00018,2]
[365270429,1749570658047,-151.0,0.00018,2]
[365270431,1749570658056,-194.093952,0.00018,2]
[365270433,1749570658066,-151.0,0.00018,2]
[365270435,1749570658075,-151.0,0.00018,2]
[365270437,1749570658084,-268.1199,0.00018,2]
[365270439,1749570658094,-170.682926,0.00018,2]
[365270441,1749570658103,-151.0,0.00018,2]
[365270443,1749570658114,-151.0,0.00018,2]
[365270445,1749570658124,-151.0,0.00018,2]
[365270447,1749570658133,-212.855355,0.00018,2]
[365270449,1749570658142,-212.855355,0.00018,2]
[365270451,1749570658151,-162.517009,0.00018,2]
[365270453,1749570658162,-162.517009,0.00018,2]
[365270455,1749570658172,-532.008873,0.00018,2]
[365270457,1749570658181,-532.008873,0.00018,2]
[365270459,1749570658192,-170.29964,0.00018,2]
[365270461,1749570658200,-170.29964,0.00018,2]
[365270462,1749570658209,-151.0,0.00018,2]
[365270464,1749570658219,-151.0,0.00018,2]
[365270466,1749570658228,-151.0,0.00018,2]
[365270468,1749570658238,-151.0,0.00018,2]
[365270470,1749570658247,-151.0,0.00018,2]
[365270472,1749570658256,-151.0,0.00018,2]
[365270474,1749570658265,-388.714748,0.00018,2]
[365270476,1749570658275,-388.714748,0.00018,2]
[365270478,1749570658283,-190.369157,0.00018,2]
[365270480,1749570658293,-190.369157,0.00018,2]
[365270482,1749570658302,-472.618288,0.00018,2]
[365270484,1749570658311,-472.618288,0.00018,2]
[365270486,1749570658320,-151.0,0.00018,2]
[365270488,1749570658329,-151.0,0.00018,2]
[365270490,1749570658338,-157.347368,0.00018,2]
[365270492,1749570658346,-152.942544,0.00018,2]
[365270494,1749570658355,-152.942544,0.00018,2]
[365270496,1749570658365,-354.435439,0.00018,2]
[365270497,1749570658374,-354.435439,0.00018,2]
[365270499,1749570658383,-151.0,0.00018,2]
[365270501,1749570658392,-9047.825904,0.00018,2]
[365270503,1749570658402,-9047.825906,0.00018,2]
[365270505,1749570658412,-151.0,0.00018,2]
[365270507,1749570658422,-151.0,0.00018,2]
[365270509,1749570658431,-151.0,0.00018,2]
[365270511,1749570658441,-151.0,0.00018,2]
[365270513,1749570658449,-151.0,0.00018,2]
[365270515,1749570658459,-210.111853,0.00018,2]
[365270517,1749570658467,-151.0,0.00018,2]
[365270519,1749570658478,-151.0,0.00018,2]
[365270521,1749570658488,-151.0,0.00018,2]
[365270523,1749570658498,-151.0,0.00018,2]
[365270525,1749570658506,-151.0,0.00018,2]
[365270527,1749570658516,-151.0,0.00018,2]
[365270529,1749570658526,-247.86088608,0.00018,2]
[365270531,1749570658535,-210.111846,0.00018,2]
[365270533,1749570658544,-301.004698,0.00018,2]
[365270535,1749570658554,-301.004699,0.00018,2]
[365270537,1749570658564,-151.0,0.00018,2]
[365270539,1749570658572,-235.509538,0.00018,2]
[365270540,1749570658582,-235.509538,0.00018,2]
[365270542,1749570658591,-235.509538,0.00018,2]
[365270544,1749570658600,-235.509528,0.00018,2]
[365270546,1749570658609,-1168.379888,0.00018,2]
[365270548,1749570658619,-151.0,0.00018,2]
[365270550,1749570658628,-697.225594,0.00018,2]
[365270552,1749570658637,-697.225595,0.00018,2]
[365270554,1749570658647,-227.628302,0.00018,2]
[365270556,1749570658656,-227.628302,0.00018,2]
[365270558,1749570658666,-227.628302,0.00018,2]
[365270560,1749570658675,-227.628294,0.00018,2]
[365270562,1749570658684,-151.0,0.00018,2]
[365270564,1749570658695,-151.0,0.00018,2]
[365270566,1749570658704,-151.0,0.00018,2]
[365270568,1749570658713,-151.0,0.00018,2]
[365270570,1749570658722,-151.0,0.00018,2]
[365270572,1749570658732,-151.0,0.00018,2]
[365270573,1749570658741,-151.0,0.00018,2]
[365270575,1749570658751,-151.0,0.00018,2]
[365270577,1749570658760,-151.0,0.00018,2]
[365270579,1749570658769,-151.0,0.00018,2]
[365270581,1749570658779,-151.0,0.00018,2]
[365270583,1749570658789,-151.0,0.00018,2]
[365270585,1749570658799,-151.0,0.00018,2]
[365270587,1749570658809,-151.0,0.00018,2]
[365270589,1749570658819,-151.0,0.00018,2]
[365270591,1749570658828,-151.0,0.00018,2]
[365270593,1749570658838,-151.0,0.00018,2]
[365270595,1749570658847,-151.0,0.00018,2]
[365270597,1749570658857,-275.82036,0.00018,2]
[365270599,1749570658866,-154.0,0.00018,2]
[365270601,1749570658875,-154.0,0.00018,2]
[365270603,1749570658884,-151.0,0.00018,2]
[365270605,1749570658894,-154.0,0.00018,2]
[365270607,1749570658903,-165.40106081,0.00018,2]
[365270609,1749570658913,-151.0,0.00018,2]
[365270611,1749570658923,-157.378676,0.00018,2]
[365270613,1749570658931,-157.378684,0.00018,2]
[365270615,1749570658940,-836.130337,0.00018,2]
[365270616,1749570658950,-167.180451,0.00018,2]
[365270617,1749570658959,-836.130344,0.00018,2]
[365270618,1749570658968,-390.92406,0.00018,2]
[365270619,1749570658977,-390.92406,0.00018,2]
[365270620,1749570658986,-151.0,0.00018,2]
[365270621,1749570658995,-151.0,0.00018,2]
[365270622,1749570659004,-151.0,0.00018,2]
[365270623,1749570659014,-151.0,0.00018,2]
[365270624,1749570659022,-151.0,0.00018,2]
[365270625,1749570659031,-151.0,0.00018,2]
[365270626,1749570659040,-151.0,0.00018,2]
[365270627,1749570659049,-151.0,0.00018,2]
[365270629,1749570659058,-151.0,0.00018,2]
[365270631,1749570659067,-151.0,0.00018,2]
[365270632,1749570659076,-151.0,0.00018,2]
[365270634,1749570659085,-151.0,0.00018,2]
[365270636,1749570659095,-151.0,0.00018,2]
[365270638,1749570659104,-151.0,0.00018,2]
[365270640,1749570659113,-151.0,0.00018,2]
[365270642,1749570659123,-151.0,0.00018,2]
[365270645,1749570659132,-151.0,0.00018,2]
[365270647,1749570659141,-151.0,0.00018,2]
[365270649,1749570659151,-151.0,0.00018,2]
[365270668,1749570659160,-151.0,0.00018,2]
[365270670,1749570659332,-151.0,0.00018,2]
[365270672,1749570659341,-151.0,0.00018,2]
[365270674,1749570659350,-151.0,0.00018,2]
[365270676,1749570659359,-151.0,0.00018,2]
[365270678,1749570659368,-151.0,0.00018,2]
[365270680,1749570659377,-151.0,0.00018,2]
[365270682,1749570659386,-500.0,0.00018028,2]
[365270684,1749570659397,-500.0,0.00018028,2]
[365270686,1749570659406,-500.0,0.00018028,2]
[365270688,1749570659415,-1094.0491748,0.00018038,2]
[365270690,1749570659425,-502.34995967,0.00018039,2]
[365270692,1749570659434,-151.0,0.00018041,2]
[365270694,1749570659443,-151.0,0.00018041,2]
[365270696,1749570659452,-1680.0,0.00018053,2]
[365270698,1749570659461,-492.0,0.00018054,2]
[365270700,1749570659471,-500.0,0.00018067,2]
[365270702,1749570659483,-300.0,0.00018081,2]
[365270704,1749570659492,-300.0,0.00018081,2]
[365270706,1749570659501,-401.88123,0.00018082,2]
[365270708,1749570659511,-401.88123,0.00018082,2]
[365270710,1749570659522,-276.261827,0.00018082,2]
[365270712,1749570659531,-152.910354,0.00018082,2]
[365270714,1749570659539,-151.0,0.00018082,2]
[365270716,1749570659548,-151.0,0.00018082,2]
[365270718,1749570659560,-273.622342,0.00018082,2]
[365270720,1749570659569,-273.622342,0.00018082,2]
[365270722,1749570659578,-151.0,0.00018082,2]
[365270724,1749570659587,-151.0,0.00018082,2]
[365270726,1749570659596,-283.910702,0.00018082,2]
[365270727,1749570659607,-283.910702,0.00018082,2]
[365270729,1749570659616,-251.287677,0.00018082,2]
[365270731,1749570659627,-251.287677,0.00018082,2]
[365270733,1749570659636,-151.0,0.00018082,2]
[365270735,1749570659646,-152.39361,0.00018082,2]
[365270737,1749570659656,-220.093825,0.00018082,2]
[365270740,1749570659665,-151.0,0.00018082,2]
[365270741,1749570659675,-409.68,0.00018082,2]
[365270743,1749570659684,-409.68,0.00018082,2]
[365270746,1749570659694,-151.0,0.00018082,2]
[365270749,1749570659714,-151.0,0.00018082,2]
[365270751,1749570659725,-151.0,0.00018082,2]
[365270753,1749570659735,-151.0,0.00018082,2]
[365270755,1749570659744,-532.008873,0.00018082,2]
[365270757,1749570659754,-532.008873,0.00018082,2]
[365270759,1749570659763,-151.0,0.00018082,2]
[365270761,1749570659774,-151.0,0.00018082,2]
[365270763,1749570659784,-151.0,0.00018082,2]
[365270765,1749570659793,-151.0,0.00018082,2]
[365270767,1749570659803,-151.0,0.00018082,2]
[365270769,1749570659812,-388.714748,0.00018082,2]
[365270771,1749570659822,-388.714748,0.00018082,2]